bitfinex/quotes_SOLUSD_20260224
["timestamp","ask_amount","ask_price","bid_price","bid_amount"]
[1771906651813,8.85,95.569,76.241,1.20453259]
[1771906651814,33.9245667,76.29,76.241,1.20453259]
[1771906652007,11.78053771,76.28,76.241,1.20453259]
[1771906653718,11.78053771,76.28,76.232,45.91247769]
[1771906653719,13.10633166,76.299,76.261,1.20453259]
[1771906654113,11.78053771,76.3,76.261,1.20453259]
[1771906654315,13.10571848,76.303,76.261,1.20453259]
[1771906654514,1.15448211,76.299,76.261,1.20453259]
[1771906654722,1.15448211,76.289,76.251,1.20453259]
[1771906654931,11.78053771,76.29,76.251,1.20453259]
[1771906655621,13.10804965,76.289,76.253,1.20453259]
[1771906656730,11.78053771,76.28,76.253,1.20453259]
[1771906656925,1.15448211,76.279,76.244,1.20453259]
[1771906657308,14.26253176,76.289,76.251,1.20453259]
[1771906657513,11.78053771,76.28,76.251,1.20453259]
[1771906657716,52.41641828,76.312,76.239,13.11657915]
[1771906657717,1.15448211,76.269,76.239,13.11657915]
[1771906657913,11.78053771,76.27,76.24,1.20453259]
[1771906659529,1.15448211,76.278,76.241,1.20453259]
[1771906659737,13.10835457,76.288,76.251,1.20453259]
[1771906660030,11.78053771,76.29,76.251,1.20453259]
[1771906660730,13.10671364,76.297,76.261,1.20453259]
[1771906661119,11.78053771,76.28,76.243,1.20453259]
[1771906661530,1.15448211,76.289,76.251,1.20453259]
[1771906661734,1.15448211,76.279,76.252,13.11441011]
[1771906662037,11.78053771,76.27,76.252,13.11441011]
[1771906662422,11.78053771,76.28,76.253,1.20453259]
[1771906663037,1.15448211,76.269,76.231,1.20453259]
[1771906663724,11.78053771,76.29,76.251,1.20453259]
[1771906664429,12.93501982,76.29,76.251,1.20453259]
[1771906664937,1.15448211,76.302,76.26,11.78053771]
[1771906665230,12.93501982,76.29,76.261,1.20453259]
[1771906665437,1.15448211,76.29,76.261,1.20453259]
[1771906665736,11.78053771,76.29,76.262,14.31722305]
[1771906665919,11.78053771,76.29,76.263,1.20453259]
[1771906666216,13.10650344,76.298,76.263,1.20453259]
[1771906666412,11.78053771,76.31,76.271,1.20453259]
[1771906666611,13.10516383,76.306,76.271,1.20453259]
[1771906667015,11.78053771,76.33,76.291,1.20453259]
[1771906667233,13.09774849,76.349,76.262,111.45786891]
[1771906667234,11.78053771,76.3,76.272,1.20453259]
[1771906667426,1.15448211,76.319,76.281,1.20453259]
[1771906667941,1.15448211,76.319,76.283,1.20453259]
[1771906668438,11.78053771,76.32,76.283,1.20453259]
[1771906669019,24.88330033,76.32,76.283,1.20453259]
[1771906669838,11.78053771,76.3,76.273,1.17983553]
[1771906670041,1.22090205,76.309,76.273,1.17983553]
[1771906670221,45.85957603,76.32,76.273,1.17983553]
[1771906670222,13.00143976,76.3,76.273,1.17983553]
[1771906670941,13.00143976,76.3,76.251,45.90103735]
[1771906670942,11.78053771,76.29,76.263,1.17983553]
[1771906671241,1.22090205,76.299,76.263,1.17983553]
[1771906671429,45.85957603,76.32,76.27,11.78053771]
[1771906671430,1.22090205,76.313,76.27,11.78053771]
[1771906671628,11.78053771,76.31,76.271,1.17983553]
[1771906671816,11.78053771,76.31,76.273,1.17983553]
[1771906671817,13.10461413,76.309,76.273,1.17983553]
[1771906672417,14.32551618,76.309,76.273,1.17983553]
[1771906672733,1.22090205,76.308,76.273,1.17983553]
[1771906673944,11.78053771,76.29,76.264,1.17983553]
[1771906674323,1.22090205,76.299,76.264,1.17983553]
[1771906675040,13.1049576,76.307,76.271,1.17983553]
[1771906675238,1.22090205,76.299,76.261,45.89501841]
[1771906675433,1.22090205,76.299,76.261,47.07485394]
[1771906675625,1.22090205,76.299,76.262,1.17983553]
[1771906675821,1.22090205,76.289,76.254,1.17983553]
[1771906676022,52.41159811,76.319,76.253,13.11414148]
[1771906676023,1.22090205,76.307,76.271,1.17983553]
[1771906676242,11.80491854,76.31,76.271,1.17983553]
[1771906676548,11.80491854,76.3,76.271,1.17983553]
[1771906676838,1.22090205,76.299,76.261,1.17983553]
[1771906677242,1.22090205,76.289,76.254,1.17983553]
[1771906677747,1.22090205,76.289,76.26,12.98475407]
[1771906677948,13.10822147,76.288,76.26,1.17983553]
[1771906678432,13.10822147,76.288,76.261,13.1128624]
[1771906679940,13.10822147,76.288,76.261,1.17983553]
[1771906681545,13.10822147,76.288,76.262,13.11269046]
[1771906682025,1.22090205,76.302,76.263,1.17983553]
[1771906682225,52.38986727,76.351,76.262,13.11269046]
[1771906682226,11.80491854,76.33,76.291,1.17983553]
[1771906682421,13.09913338,76.341,76.31,11.80491854]
[1771906682628,52.36510081,76.387,76.321,1.17983553]
[1771906682629,1.22090205,76.359,76.321,1.17983553]
[1771906682839,1.22090205,76.358,76.321,1.17983553]
[1771906683043,1.22090205,76.358,76.3,11.80491854]
[1771906683044,0.2,76.36,76.331,1.17983553]
[1771906683255,25.10089745,76.36,76.331,1.17983553]
[1771906683847,0.2,76.36,76.332,1.17983553]
[1771906684154,13.09603321,76.359,76.333,1.17983553]
[1771906684534,32.73427044,76.373,76.342,1.17983553]
[1771906684535,13.09377398,76.373,76.342,1.17983553]
[1771906684730,13.09260398,76.379,76.35,11.80491854]
[1771906684924,13.09260398,76.379,76.351,1.17983553]
[1771906686028,13.09260398,76.379,76.352,14.27706939]
[1771906686223,13.09193321,76.383,76.353,1.17983553]
[1771906687243,11.80491854,76.38,76.353,1.17983553]
[1771906687439,14.31069562,76.396,76.361,1.17983553]
[1771906687753,14.31069562,76.396,76.352,1.17983553]
[1771906687754,1.22090205,76.389,76.352,1.17983553]
[1771906688246,1.22090205,76.369,76.305,32.76325273]
[1771906688452,11.80491854,76.36,76.321,1.17983553]
[1771906688650,11.80491854,76.36,76.331,1.17983553]
[1771906688831,1.22090205,76.369,76.331,1.17983553]
[1771906689033,11.80491854,76.37,76.341,1.17983553]
[1771906689649,14.31522042,76.369,76.341,1.17983553]
[1771906690362,14.31522042,76.369,76.321,1.17983553]
[1771906690363,1.22090205,76.358,76.321,1.17983553]
[1771906690647,11.80491854,76.36,76.321,1.17983553]
[1771906690955,1.22090205,76.366,76.331,1.17983553]
[1771906691156,11.80491854,76.36,76.331,1.17983553]
[1771906691362,45.8301143,76.369,76.284,1.17983553]
[1771906691363,11.80491854,76.35,76.284,1.17983553]
[1771906691537,11.80491854,76.32,76.301,1.17983553]
[1771906691732,11.80491854,76.32,76.29,11.80491854]
[1771906691733,1.22090205,76.328,76.292,1.17983553]
[1771906692060,1.22090205,76.328,76.29,13.10784206]
[1771906692061,11.80491854,76.32,76.282,1.17983553]
[1771906692259,11.80491854,76.31,76.282,1.17983553]
[1771906692435,11.80491854,76.31,76.274,13.11052233]
[1771906692436,11.80491854,76.31,76.275,1.17983553]
[1771906692640,11.80491854,76.33,76.291,1.17983553]
[1771906692962,11.80491854,76.31,76.281,1.17983553]
[1771906693160,11.80491854,76.33,76.301,1.17983553]
[1771906693658,11.80491854,76.32,76.292,1.17983553]
[1771906693859,1.22090205,76.328,76.292,1.17983553]
[1771906694051,11.80491854,76.34,76.301,1.17983553]
[1771906694250,11.80491854,76.34,76.311,1.17983553]
[1771906695365,11.80491854,76.35,76.311,1.17983553]
[1771906695761,11.80491854,76.35,76.313,1.17983553]
[1771906695964,3.69383402,76.371,76.331,1.17983553]
[1771906695965,1.22090205,76.371,76.331,1.17983553]
[1771906696148,1.22090205,76.339,76.301,13.10598812]
[1771906696348,11.80491854,76.33,76.302,1.17983553]
[1771906696544,11.80491854,76.35,76.311,1.17983553]
[1771906696750,1.22090205,76.359,76.321,1.17983553]
[1771906696942,1.22090205,76.331,76.27,1.17983553]
[1771906697145,11.80491854,76.32,76.281,1.17983553]
[1771906697379,11.80491854,76.32,76.291,1.17983553]
[1771906697862,24.90593672,76.33,76.293,1.17983553]
[1771906698850,1.23026076,76.329,76.293,1.17983553]
[1771906699555,57.65845866,76.33,76.271,1.13097804]
[1771906699556,1.23026076,76.309,76.271,1.13097804]
[1771906699751,52.39103958,76.349,76.261,1.13097804]
[1771906699752,11.80491854,76.29,76.261,1.13097804]
[1771906700354,45.86675052,76.308,76.261,1.13097804]
[1771906700355,11.80491854,76.3,76.261,1.13097804]
[1771906700555,1.23026076,76.289,76.251,1.13097804]
[1771906701053,11.80491854,76.28,76.251,1.13097804]
[1771906701455,1.23026076,76.289,76.251,1.13097804]
[1771906701659,11.80491854,76.28,76.252,1.13097804]
[1771906701858,13.10822147,76.288,76.252,1.13097804]
[1771906702064,4.82759133,76.308,76.252,1.13097804]
[1771906702259,12.93867585,76.3,76.252,1.13097804]
[1771906702462,11.80491854,76.29,76.252,1.13097804]
[1771906703850,13.10804965,76.289,76.253,13.11423812]
[1771906704057,1.13375731,76.279,76.246,13.11534335]
[1771906704450,11.80491854,76.26,76.234,1.217847]
[1771906704892,1.13375731,76.249,76.221,1.217847]
[1771906705066,14.24143186,76.292,76.24,11.80491854]
[1771906705271,11.80491854,76.27,76.241,1.217847]
[1771906705447,1.13375731,76.269,76.23,1.217847]
[1771906705648,11.80491854,76.26,76.23,1.217847]
[1771906706051,11.80491854,76.25,76.23,1.217847]
[1771906706263,24.91795289,76.26,76.232,1.217847]
[1771906706772,11.80491854,76.27,76.232,1.217847]
[1771906706967,13.1102837,76.276,76.232,1.217847]
[1771906706968,11.80491854,76.26,76.232,1.217847]
[1771906707169,45.88599296,76.276,76.232,1.217847]
[1771906707170,11.80491854,76.27,76.232,1.217847]
[1771906707473,13.1102837,76.276,76.232,1.217847]
[1771906708057,1.13375731,76.269,76.234,1.217847]
[1771906708577,13.1102837,76.276,76.19,0.1]
[1771906708578,11.80491854,76.25,76.213,1.217847]
[1771906708951,1.13375731,76.248,76.211,1.217847]
[1771906709163,3.69383402,76.273,76.211,1.217847]
[1771906709164,11.80491854,76.25,76.211,1.217847]
[1771906709872,1.13375731,76.255,76.211,1.217847]
[1771906710073,45.8902044,76.269,76.221,1.217847]
[1771906710289,11.80491854,76.26,76.231,1.217847]
[1771906710456,1.13375731,76.259,76.213,1.217847]
[1771906710956,1.13375731,76.272,76.221,1.217847]
[1771906711164,11.80491854,76.26,76.221,1.217847]
[1771906711574,11.80491854,76.24,76.212,13.12129323]
[1771906711876,11.80491854,76.25,76.211,1.217847]
[1771906712073,13.11492609,76.249,76.213,1.217847]
[1771906712402,13.11355022,76.258,76.213,1.217847]
[1771906712554,13.1117904,76.268,76.221,1.217847]
[1771906713359,11.80491854,76.27,76.231,1.217847]
[1771906713558,11.80491854,76.3,76.251,1.217847]
[1771906713559,13.10633166,76.299,76.251,1.217847]
[1771906713765,11.80491854,76.3,76.251,1.217847]
[1771906714069,13.10427068,76.311,76.252,45.90043539]
[1771906714271,1.13375731,76.289,76.252,45.90043539]
[1771906714469,1.13375731,76.289,76.253,1.217847]
[1771906714775,13.10427068,76.311,76.261,1.217847]
[1771906714982,11.80491854,76.29,76.261,1.217847]
[1771906715276,1.13375731,76.279,76.23,11.80491854]
[1771906715586,1.13375731,76.279,76.211,65.60732702]
[1771906715587,11.80491854,76.26,76.231,1.217847]
[1771906715875,11.80491854,76.27,76.231,1.217847]
[1771906716174,11.80491854,76.29,76.251,1.217847]
[1771906716389,11.80491854,76.3,76.253,1.217847]
[1771906716677,1.13375731,76.299,76.253,1.217847]
[1771906716853,11.80491854,76.29,76.253,1.217847]
[1771906717054,1.13375731,76.299,76.253,1.217847]
[1771906717653,3.69383402,76.323,76.261,1.217847]
[1771906717654,13.10489499,76.308,76.261,1.217847]
[1771906717858,1.13375731,76.317,76.271,1.217847]
[1771906718155,11.80491854,76.32,76.271,1.217847]
[1771906718358,11.80491854,76.31,76.273,1.217847]
[1771906718770,1.13375731,76.318,76.273,1.217847]
[1771906719084,1.13375731,76.309,76.273,1.217847]
[1771906719657,1.13375731,76.309,76.272,45.88839941]
[1771906719658,11.80491854,76.3,76.272,13.11097126]
[1771906719910,11.80491854,76.3,76.272,14.32881826]
[1771906720382,14.23843483,76.309,76.273,1.217847]
[1771906720578,11.80491854,76.3,76.273,1.217847]
[1771906720880,11.80491854,76.31,76.273,1.217847]
[1771906721086,13.10289705,76.319,76.273,1.217847]
[1771906721261,1.13375731,76.309,76.273,1.217847]
[1771906721579,14.23665436,76.319,76.273,1.217847]
[1771906721966,1.13375731,76.309,76.273,1.217847]
[1771906722282,11.80491854,76.31,76.273,1.217847]
[1771906722785,11.80491854,76.32,76.275,1.217847]
[1771906722997,13.10186701,76.325,76.281,1.217847]
[1771906723282,1.13375731,76.319,76.281,1.217847]
[1771906723483,1.13375731,76.328,76.281,1.217847]
[1771906723784,11.80491854,76.3,76.261,1.217847]
[1771906723979,1.13375731,76.299,76.261,1.217847]
[1771906724282,11.80491854,76.29,76.261,1.217847]
[1771906724676,11.80491854,76.29,76.262,13.11269046]
[1771906725375,11.80491854,76.29,76.241,1.217847]
[1771906725376,11.80491854,76.27,76.241,1.217847]
[1771906725582,1.13375731,76.279,76.242,13.11603506]
[1771906725883,11.80491854,76.28,76.251,1.217847]
[1771906726072,1.13375731,76.279,76.242,14.33388206]
[1771906726271,1.13375731,76.279,76.243,1.217847]
[1771906726473,12.93867585,76.27,76.242,13.11603506]
[1771906726791,14.24539488,76.269,76.235,1.217847]
[1771906726985,1.13375731,76.269,76.235,1.217847]
[1771906727876,11.80491854,76.27,76.235,1.217847]
[1771906728084,11.80491854,76.3,76.234,13.11750662]
[1771906728085,1.23847778,76.278,76.241,1.2287923]
[1771906728861,13.11011182,76.277,76.243,1.2287923]
[1771906729366,1.23847778,76.302,76.27,11.80491854]
[1771906729667,11.80491854,76.29,76.251,1.2287923]
[1771906729867,13.1056446,76.303,76.271,1.2287923]
[1771906730069,11.80491854,76.3,76.271,1.2287923]
[1771906730276,13.04339632,76.3,76.271,1.2287923]
[1771906730477,1.23847778,76.3,76.271,1.2287923]
[1771906730675,11.80491854,76.3,76.271,1.2287923]
[1771906731286,11.80491854,76.29,76.242,1.2287923]
[1771906731588,1.23847778,76.279,76.242,1.2287923]
[1771906731969,1.23847778,76.298,76.242,1.2287923]
[1771906732173,1.23847778,76.289,76.251,1.2287923]
[1771906732369,1.23847778,76.279,76.242,1.2287923]
[1771906732888,45.87216083,76.299,76.22,111.51928627]
[1771906732889,11.80491854,76.29,76.251,1.2287923]
[1771906733085,11.80491854,76.33,76.281,1.2287923]
[1771906733290,1.23847778,76.339,76.301,1.2287923]
[1771906733469,11.80491854,76.33,76.301,1.2287923]
[1771906733787,1.23847778,76.334,76.301,1.2287923]
[1771906734185,11.80491854,76.34,76.301,1.2287923]
[1771906734387,1.23847778,76.329,76.291,1.2287923]
[1771906734993,13.04339632,76.32,76.291,1.2287923]
[1771906735182,11.80491854,76.31,76.282,13.10925251]
[1771906735381,11.80491854,76.32,76.283,1.2287923]
[1771906735578,13.09946423,76.339,76.301,1.2287923]
[1771906736193,11.80491854,76.33,76.301,1.2287923]
[1771906736387,1.23847778,76.33,76.301,1.2287923]
[1771906736693,11.80491854,76.33,76.301,1.2287923]
[1771906737273,13.10118041,76.329,76.301,1.2287923]
[1771906737469,1.23847778,76.326,76.29,11.7953024]
[1771906737696,11.7953024,76.32,76.288,1.2287923]
[1771906738092,11.7953024,76.31,76.278,1.2287923]
[1771906738287,1.23847778,76.317,76.282,1.2287923]
[1771906738596,13.10118041,76.329,76.291,1.2287923]
[1771906739107,1.23847778,76.328,76.291,1.2287923]
[1771906739392,1.23847778,76.328,76.293,1.2287923]
[1771906740597,13.38584684,76.327,76.291,1.2287923]
[1771906740795,13.38584684,76.327,76.281,13.10942436]
[1771906740796,1.23847778,76.339,76.301,1.2287923]
[1771906740994,1.23847778,76.329,76.29,1.2287923]
[1771906741295,13.09946423,76.339,76.301,1.2287923]
[1771906741599,13.09946423,76.339,76.3,11.7953024]
[1771906741600,1.23847778,76.338,76.303,1.2287923]
[1771906743077,1.23847778,76.348,76.311,1.2287923]
[1771906743377,14.33656938,76.347,76.311,1.2287923]
[1771906743582,14.33656938,76.347,76.313,1.2287923]
[1771906744187,1.23847778,76.347,76.313,1.2287923]
[1771906744492,1.23847778,76.347,76.312,45.86434636]
[1771906744493,24.89130221,76.36,76.33,11.7953024]
[1771906744680,24.89130221,76.36,76.331,1.2287923]
[1771906745081,1.23847778,76.359,76.32,11.7953024]
[1771906745301,1.23847778,76.359,76.321,1.2287923]
[1771906745998,14.33468249,76.358,76.322,14.33117431]
[1771906746416,1.23847778,76.357,76.323,1.2287923]
[1771906747200,1.23847778,76.349,76.313,1.2287923]
[1771906747379,1.23847778,76.349,76.315,1.2287923]
[1771906747587,11.7953024,76.32,76.291,1.2287923]
[1771906747887,1.23847778,76.329,76.291,1.2287923]
[1771906748087,1.23847778,76.327,76.292,13.10753421]
[1771906748296,11.7953024,76.32,76.292,13.10753421]
[1771906748494,1.23847778,76.327,76.293,1.2287923]
[1771906749202,11.7953024,76.33,76.293,1.2287923]
[1771906749929,13.10118041,76.329,76.293,1.2287923]
[1771906750102,11.7953024,76.33,76.301,1.2287923]
[1771906750292,13.09970624,76.338,76.301,1.2287923]
[1771906751798,13.09970624,76.338,76.3,11.7953024]
[1771906751799,13.09843504,76.345,76.311,1.2287923]
[1771906752011,1.23847778,76.365,76.311,1.2287923]
[1771906752187,1.23847778,76.369,76.331,1.2287923]
[1771906752583,1.23847778,76.369,76.341,1.2287923]
[1771906752781,3.69383402,76.387,76.351,1.2287923]
[1771906752987,1.23847778,76.389,76.351,1.2287923]
[1771906753185,1.23847778,76.387,76.351,1.2287923]
[1771906753487,11.7953024,76.38,76.351,1.2287923]
[1771906753890,1.23847778,76.387,76.351,1.2287923]
[1771906754087,13.09140418,76.386,76.352,13.09723386]
[1771906754308,11.7953024,76.39,76.361,1.2287923]
[1771906754805,13.03378018,76.39,76.361,1.2287923]
[1771906755504,13.09089004,76.389,76.361,1.2287923]
[1771906755803,13.09089004,76.389,76.321,52.41015568]
[1771906755804,1.23847778,76.369,76.33,13.0240947]
[1771906756011,1.23847778,76.369,76.291,52.43059769]
[1771906756012,1.23847778,76.379,76.341,1.2287923]
[1771906756330,11.7953024,76.36,76.331,1.2287923]
[1771906756615,98.18167535,76.389,76.293,1.2287923]
[1771906756616,1.23847778,76.339,76.293,1.2287923]
[1771906756806,3.69383402,76.349,76.293,1.2287923]
[1771906756807,11.7953024,76.32,76.293,1.2287923]
[1771906756987,11.7953024,76.31,76.282,13.10909705]
[1771906757516,1.23847778,76.299,76.261,45.89460901]
[1771906757692,1.23847778,76.299,76.262,1.2287923]
[1771906758009,1.23847778,76.299,76.261,45.89460901]
[1771906758010,11.7953024,76.31,76.271,1.20552446]
[1771906758197,1.17021542,76.309,76.271,1.20552446]
[1771906758393,11.7953024,76.29,76.261,45.89501841]
[1771906758916,1.17021542,76.299,76.262,1.20552446]
[1771906759693,1.17021542,76.299,76.264,1.20552446]
[1771906760010,1.17021542,76.309,76.271,1.20552446]
[1771906760212,11.7953024,76.3,76.271,1.20552446]
[1771906760710,1.17021542,76.309,76.271,1.20552446]
[1771906760916,13.10118041,76.329,76.291,1.20552446]
[1771906761208,14.27139583,76.329,76.291,1.20552446]
[1771906761417,1.17021542,76.328,76.291,1.20552446]
[1771906761786,1.19731281,76.339,76.301,1.18692901]
[1771906761991,1.19731281,76.349,76.311,1.18692901]
[1771906762214,11.7953024,76.34,76.311,1.18692901]
[1771906762916,1.19731281,76.349,76.311,1.18692901]
[1771906763114,11.7953024,76.35,76.311,1.18692901]
[1771906763308,11.7953024,76.35,76.32,11.7953024]
[1771906763513,13.09637877,76.357,76.32,12.98223141]
[1771906763711,1.19731281,76.359,76.33,11.7953024]
[1771906763918,13.09620471,76.358,76.331,13.10083714]
[1771906764212,1.19731281,76.359,76.331,13.10083714]
[1771906764511,1.19731281,76.359,76.326,14.2884579]
[1771906764811,11.7953024,76.34,76.314,1.18692901]
[1771906765194,1.19731281,76.349,76.314,1.18692901]
[1771906766014,11.7953024,76.35,76.314,1.18692901]
[1771906766015,14.29523286,76.348,76.315,13.10358383]
[1771906766202,14.29523286,76.348,76.315,14.29051284]
[1771906766203,1.19731281,76.347,76.315,14.29051284]
[1771906766405,11.7953024,76.34,76.315,14.29051284]
[1771906766710,1.19731281,76.352,76.316,1.18692901]
[1771906766903,1.19731281,76.352,76.321,1.18692901]
[1771906767308,11.7953024,76.37,76.332,1.18692901]
[1771906767632,1.19731281,76.369,76.332,1.18692901]
[1771906768101,1.19731281,76.369,76.341,1.18692901]
[1771906768300,11.7953024,76.37,76.341,1.18692901]
[1771906768603,1.19731281,76.376,76.341,1.18692901]
[1771906768808,14.29053448,76.376,76.341,1.18692901]
[1771906769518,11.7953024,76.37,76.341,1.18692901]
[1771906769921,0.28432314,76.349,76.289,13.10792701]
[1771906770123,11.7953024,76.33,76.298,1.18692901]
[1771906770324,12.99261521,76.34,76.311,1.18692901]
[1771906770498,11.7953024,76.32,76.292,1.18692901]
[1771906770706,1.19731281,76.329,76.292,1.18692901]
[1771906773112,11.7953024,76.34,76.301,1.18692901]
[1771906774103,1.19731281,76.347,76.301,1.18692901]
[1771906774306,3.69383402,76.359,76.311,1.18692901]
[1771906774307,11.7953024,76.35,76.311,1.18692901]
[1771906774615,12.99261521,76.35,76.311,1.18692901]
[1771906774818,1.19731281,76.359,76.321,1.18692901]
[1771906775021,11.7953024,76.35,76.321,1.18692901]
[1771906775317,13.09774849,76.349,76.321,1.18692901]
[1771906775507,11.7953024,76.35,76.322,13.10238201]
[1771906775705,11.7953024,76.35,76.322,14.28931102]
[1771906775909,13.09632798,76.358,76.323,1.18692901]
[1771906776723,3.69383402,76.38,76.322,13.10238201]
[1771906776724,11.7953024,76.37,76.331,1.18692901]
[1771906776918,1.19731281,76.376,76.331,1.18692901]
[1771906777118,1.19731281,76.376,76.34,11.7953024]
[1771906777417,11.7953024,76.38,76.341,1.18692901]
[1771906777418,13.0928241,76.378,76.341,1.18692901]
[1771906778111,11.7953024,76.37,76.341,1.18692901]
[1771906778620,13.0928241,76.378,76.341,1.18692901]
[1771906779203,11.7953024,76.37,76.343,1.18692901]
[1771906779618,13.0928241,76.378,76.343,1.18692901]
[1771906780322,11.7953024,76.36,76.333,1.18692901]
[1771906780520,1.19731281,76.369,76.333,1.18692901]
[1771906780721,11.7953024,76.37,76.333,1.18692901]
[1771906781204,1.19731281,76.389,76.35,11.7953024]
[1771906781528,13.09106142,76.388,76.351,1.18692901]
[1771906783522,11.7953024,76.39,76.353,1.18692901]
[1771906784237,11.7953024,76.38,76.353,1.18692901]
[1771906784606,14.28820285,76.389,76.353,1.18692901]
[1771906784818,11.7953024,76.38,76.353,1.18692901]
[1771906785728,13.09171153,76.385,76.354,14.2838198]
[1771906785934,13.09171153,76.385,76.355,1.18692901]
[1771906786739,0.2,76.4,76.361,1.18692901]
[1771906786740,11.9953024,76.4,76.361,1.18692901]
[1771906786908,0.2,76.4,76.381,1.18692901]
[1771906788102,0.2,76.4,76.371,1.13924441]
[1771906789030,0.2,76.4,76.373,1.13924441]
[1771906789627,0.28432314,76.379,76.323,1.13924441]
[1771906789823,11.7953024,76.36,76.324,1.13924441]
[1771906791240,11.7953024,76.36,76.326,1.13924441]
[1771906791617,13.09489295,76.366,76.326,1.13924441]
[1771906791934,11.7953024,76.35,76.326,1.13924441]
[1771906792118,11.7953024,76.35,76.325,13.10186701]
[1771906792430,13.09448983,76.368,76.321,1.13924441]
[1771906792639,11.7953024,76.36,76.321,1.13924441]
[1771906792838,11.7953024,76.37,76.331,1.13924441]
[1771906793040,1.15923525,76.377,76.341,1.13924441]
[1771906793215,11.7953024,76.37,76.343,1.13924441]
[1771906794826,1.15923525,76.377,76.343,1.13924441]
[1771906795215,11.7953024,76.37,76.345,1.13924441]
[1771906795615,1.15923525,76.377,76.345,1.13924441]
[1771906795829,14.25226181,76.377,76.345,1.13924441]
[1771906796036,11.7953024,76.37,76.345,1.13924441]
[1771906796238,11.7953024,76.36,76.335,1.13924441]
[1771906796621,13.09302656,76.377,76.335,1.13924441]
[1771906796836,11.7953024,76.37,76.335,1.13924441]
[1771906797619,11.7953024,76.37,76.337,1.13924441]
[1771906798638,13.09260398,76.379,76.341,1.13924441]
[1771906799515,13.08917655,76.399,76.351,1.13924441]
[1771906799716,11.78169469,76.38,76.351,1.13924441]
[1771906801536,13.09150327,76.386,76.353,1.13924441]
[1771906801756,13.08951922,76.397,76.36,11.78169469]
[1771906802047,11.78169469,76.39,76.361,1.13924441]
[1771906802239,13.08951922,76.397,76.361,1.13924441]
[1771906803732,11.78169469,76.39,76.363,1.13924441]
[1771906804132,0.2,76.4,76.363,1.13924441]
[1771906804331,0.2,76.4,76.371,1.13924441]
[1771906804535,11.98169469,76.41,76.37,11.78169469]
[1771906804536,0.2,76.41,76.37,11.78169469]
[1771906804722,0.2,76.41,76.362,45.83431549]
[1771906804723,0.2,76.41,76.381,1.13924441]
[1771906805843,0.2,76.41,76.383,1.13924441]
[1771906807353,0.2,76.41,76.391,1.13924441]
[1771906807840,0.2,76.41,76.355,104.77287338]
[1771906807841,0.2,76.41,76.393,1.13924441]
[1771906808055,1.15923525,76.427,76.393,1.13924441]
[1771906808340,13.08414021,76.429,76.401,1.13924441]
[1771906809122,13.08239132,76.439,76.411,1.13924441]
[1771906810744,0.2,76.45,76.421,1.13924441]
[1771906810945,0.2,76.45,76.431,1.13924441]
[1771906812549,0.2,76.46,76.432,1.13924441]
[1771906812742,0.2,76.46,76.4,11.78169469]
[1771906812743,1.15923525,76.458,76.425,13.08472358]
[1771906813051,1.15923525,76.458,76.426,1.13924441]
[1771906813452,13.07890503,76.459,76.426,1.13924441]
[1771906813747,0.2,76.46,76.431,1.13924441]
[1771906814052,0.2,76.46,76.441,1.13924441]
[1771906814547,0.2,76.47,76.441,1.13924441]
[1771906814742,13.07753671,76.467,76.432,1.13924441]
[1771906814946,14.23677196,76.467,76.432,1.13924441]
[1771906815150,11.78169469,76.46,76.432,1.13924441]
[1771906815537,0.2,76.47,76.432,1.13924441]
[1771906815739,11.98169469,76.47,76.432,1.13924441]
[1771906815935,11.98169469,76.47,76.441,1.13924441]
[1771906815936,0.2,76.47,76.441,1.13924441]
[1771906816336,11.78169469,76.46,76.42,11.78169469]
[1771906816642,11.78169469,76.46,76.421,13.08540846]
[1771906816834,1.15923525,76.464,76.43,11.78169469]
[1771906817556,25.05886521,76.47,76.43,11.78169469]
[1771906817739,1.15923525,76.469,76.43,11.78169469]
[1771906820354,1.16524241,76.468,76.435,1.12806419]
[1771906821152,1.16524241,76.468,76.436,13.08284054]
[1771906821353,1.16524241,76.468,76.437,1.12806419]
[1771906822654,1.16524241,76.468,76.441,1.10338049]
[1771906822953,13.07753671,76.467,76.441,1.10338049]
[1771906823264,13.07753671,76.467,76.455,0.18323228]
[1771906823454,1.39765025,76.47,76.455,0.18323228]
[1771906823661,11.98169469,76.47,76.436,13.08283038]
[1771906823849,1.19765025,76.469,76.436,14.18621087]
[1771906824051,0.2,76.47,76.441,1.10338049]
[1771906825052,1.19765025,76.469,76.441,1.10338049]
[1771906825761,14.27484493,76.469,76.443,1.10338049]
[1771906826345,0.2,76.47,76.443,1.10338049]
[1771906826541,13.27706866,76.47,76.443,1.10338049]
[1771906826964,14.47471891,76.47,76.443,1.10338049]
[1771906827164,1.19765025,76.459,76.421,1.10338049]
[1771906827365,1.19765025,76.467,76.43,11.78169469]
[1771906827666,1.19765025,76.467,76.403,130.88491287]
[1771906827667,1.19765025,76.467,76.441,1.10338049]
[1771906827864,1.19765025,76.467,76.443,1.10338049]
[1771906828567,0.2,76.47,76.443,1.10338049]
[1771906829951,0.2,76.47,76.445,1.10338049]